fUSD/lending_fUSD_20260106
["ID","MTS","AMOUNT","RATE_DAILY","PERIOD"]
[400533625,1767701437817,-500.0,0.00020989,2]
[400533626,1767701437827,-219.61263244,0.00020989,2]
[400533627,1767701437836,-7740.98247703,0.0002099,2]
[400533628,1767701437848,-33461.30270531,0.0002099,2]
[400533629,1767701437860,-4236.0,0.0002099,2]
[400533630,1767701437875,-156791.59027877,0.0002099,2]
[400533631,1767701437885,-151.0,0.0002099,2]
[400533632,1767701437895,-151.0,0.0002099,2]
[400533633,1767701437904,-151.0,0.0002099,2]
[400533635,1767701437913,-151.0,0.0002099,2]
[400533636,1767701438175,-151.0,0.0002099,2]
[400533637,1767701438193,-1191.16510258,0.00021,2]
[400533638,1767701438203,-196.61170439,0.00021,2]
[400533639,1767701438213,-160.0,0.00021,7]
[400533640,1767701438223,-12491.06,0.00021068,2]
[400533641,1767701438233,-192.46,0.00021099,2]
[400533642,1767701438243,-2289.44393283,0.00021202,2]
[400533643,1767701438253,-500.0,0.00021272,2]
[400533644,1767701438263,-166.72267622,0.000214,2]
[400533645,1767701438275,-57438.65090699,0.000215,2]
[400533646,1767701438285,-221.7670119,0.000215,2]
[400533647,1767701438296,-500.0,0.00021525,2]
[400533648,1767701438308,-1000.0,0.00021678,2]
[400533649,1767701438318,-2804.38,0.00021911,2]
[400533650,1767701438327,-5000.0,0.00021918,2]
[400533651,1767701438339,-150.0,0.00021918,2]
[400533652,1767701438349,-150.0,0.00021918,2]
[400533653,1767701438359,-175.84813518,0.00021973,2]
[400533654,1767701438370,-163.53,0.00022,2]
[400533655,1767701438380,-500.0,0.00022073,2]
[400533656,1767701438389,-1000.0,0.00022461,2]
[400533657,1767701438398,-7536.95,0.00022473,2]
[400533658,1767701438408,-1566.7897619,0.00022504,2]
[400533659,1767701438418,-249.1686847,0.00022545,2]
[400533660,1767701438429,-500.0,0.00022621,2]
[400533661,1767701438438,-2924.5,0.00022812,2]
[400533662,1767701438447,-2804.38,0.00022863,2]
[400533663,1767701438457,-552.45242198,0.00023,2]
[400533664,1767701438466,-300.0,0.00023075,2]
[400533665,1767701438477,-500.0,0.00023169,2]
[400533666,1767701438487,-192.46,0.00023209,2]
[400533667,1767701438497,-7216.61208625,0.00023233,2]
[400533668,1767701438506,-1000.0,0.00023245,2]
[400533669,1767701438515,-500.0,0.00023717,2]
[400533670,1767701438525,-1712.00597889,0.00023816,2]
[400533671,1767701438537,-1092.37402111,0.00023816,2]
[400533672,1767701438547,-167.86379021,0.00024028,2]
[400533673,1767701438559,-832.13620979,0.00024028,2]
[400533674,1767701438569,-500.0,0.00024072,2]
[400533675,1767701438580,-500.0,0.00024265,2]
[400533676,1767701438589,-502.94707935,0.00024658,2]
[400533677,1767701438603,-497.05292065,0.00024658,2]
[400533678,1767701438613,-187.15,0.00024658,2]
[400533679,1767701438623,-1566.7897619,0.00024678,2]
[400533680,1767701438633,-2924.5,0.000247,2]
[400533681,1767701438643,-336.54002912,0.000247,2]
[400533682,1767701438653,-249.1686847,0.0002476,2]
[400533683,1767701438663,-2804.38,0.00024769,2]
[400533684,1767701438672,-18308.3157645,0.000248,3]
[400533685,1767701438683,-109.83029456,0.00024813,2]
[400533687,1767701439690,-390.16970544,0.00024813,2]
[400533688,1767701439700,-9154.15788223,0.00024865,3]
[400533689,1767701439710,-4527.72,0.00024875,2]
[400533690,1767701439719,-13893.15,0.00025341,2]
[400533691,1767701439728,-200.0,0.00025427,2]
[400533692,1767701439738,-7216.61208625,0.00025567,2]
[400533693,1767701439748,-150.0,0.00025659,2]
[400533694,1767701439757,-9154.15788223,0.00025711,3]
[400533695,1767701439766,-2804.38,0.00025721,2]
[400533696,1767701439776,-1000.0,0.00026342,2]
[400533697,1767701439786,-2924.5,0.00026587,2]
[400533698,1767701439796,-336.54002912,0.00026611,2]
[400533699,1767701439805,-2804.38,0.00026674,2]
[400533700,1767701439815,-249.84,0.00026676,2]
[400533701,1767701439824,-1566.7897619,0.00026853,2]
[400533702,1767701439833,-500.0,0.00026873,2]
[400533703,1767701439843,-249.1686847,0.00026975,2]
[400533704,1767701439852,-193.55,0.00027223,2]
[400533705,1767701439862,-9154.15788223,0.0002739,3]
[400533706,1767701439871,-500.0,0.00027397,20]
[400533707,1767701439881,-300.0,0.00027397,2]
[400533708,1767701439890,-348.58,0.00027397,30]
[400533709,1767701439899,-2804.38,0.00027626,2]
[400533710,1767701439909,-20354.0,0.000277,2]
[400533711,1767701439919,-7216.61208625,0.000279,2]
[400533712,1767701439928,-177.06,0.00027957,2]
[400533713,1767701439937,-280.54152315,0.00028089,2]
[400533714,1767701439947,-9154.15788223,0.0002809,3]
[400533715,1767701439957,-1178.91,0.00028127,2]
[400533716,1767701439966,-5532.0,0.000284,3]
[400533717,1767701439975,-2924.5,0.00028475,2]
[400533718,1767701439985,-336.54002912,0.00028522,2]
[400533719,1767701439994,-2804.38,0.00028579,2]
[400533720,1767701440004,-166.72267622,0.00028641,2]
[400533721,1767701440013,-5532.0,0.000292,5]
[400533722,1767701440022,-355.81,0.00029252,2]
[400533723,1767701440031,-244.15,0.000294,14]
[400533724,1767701440040,-9154.15788223,0.00029522,3]
[400533725,1767701440050,-2804.38,0.00029532,2]
[400533726,1767701440059,-1000.0,0.00029635,2]
[400533727,1767701440069,-500.0,0.00029673,2]
[400533728,1767701440078,-524.0,0.00029877,2]
[400533729,1767701440088,-1171.59391266,0.0003,5]
[400533730,1767701440097,-417.18292408,0.00030136,30]
[400533731,1767701440107,-7216.61208625,0.00030233,2]
[400533732,1767701440116,-2924.5,0.00030362,2]
[400533733,1767701440126,-336.54002912,0.00030433,2]
[400533734,1767701440135,-2804.38,0.00030484,2]
[400533735,1767701440144,-151.047,0.00031156,2]
[400533736,1767701440154,-151.0,0.00031156,2]
[400533737,1767701440163,-164.54,0.00031341,2]
[400533738,1767701440173,-9154.15788223,0.00031427,3]
[400533739,1767701440183,-2804.38,0.00031437,2]
[400533740,1767701440192,-3524.572,0.00031534,2]
[400533741,1767701440201,-1204.815,0.00031534,2]
[400533742,1767701440211,-9154.15788223,0.00031655,3]
[400533743,1767701440220,-500.0,0.00031665,2]
[400533744,1767701440230,-250.0,0.00031665,2]
[400533745,1767701440240,-500.0,0.00031665,2]
[400533746,1767701440250,-155.46227174,0.00031665,2]
[400533747,1767701440259,-250.0,0.00031665,2]
[400533748,1767701440269,-500.0,0.00031665,2]
[400533749,1767701440279,-250.0,0.00031665,2]
[400533750,1767701440288,-500.0,0.00031665,2]
[400533751,1767701440299,-500.0,0.00031665,2]
[400533752,1767701440309,-250.0,0.00031665,2]
[400533753,1767701440319,-500.0,0.00031665,2]
[400533754,1767701440328,-500.0,0.00031665,2]
[400533755,1767701440339,-500.0,0.00031665,2]
[400533756,1767701440348,-500.0,0.00031665,2]
[400533757,1767701440357,-250.0,0.00031665,2]
[400533758,1767701440368,-500.0,0.00031665,2]
[400533759,1767701440377,-500.0,0.00031665,2]
[400533760,1767701440387,-250.0,0.00031665,2]
[400533761,1767701440396,-500.0,0.00031665,2]
[400533762,1767701440406,-500.0,0.00031665,2]
[400533763,1767701440415,-533.88981491,0.00031665,2]
[400533764,1767701440424,-500.0,0.00031665,2]
[400533765,1767701440434,-500.0,0.00031665,2]
[400533766,1767701440443,-250.0,0.00031665,2]
[400533767,1767701440452,-500.0,0.00031665,2]
[400533768,1767701440461,-500.0,0.00031665,2]
[400533769,1767701440471,-250.0,0.00031665,2]
[400533770,1767701440480,-742.03127509,0.00031665,2]
[400533771,1767701440490,-500.0,0.00031665,2]
[400533772,1767701440499,-500.0,0.00031665,2]
[400533773,1767701440508,-200.0,0.00031665,2]
[400533774,1767701440518,-250.0,0.00031665,2]
[400533775,1767701440527,-500.0,0.00031665,2]
[400533776,1767701440536,-500.0,0.00031665,2]
[400533777,1767701440546,-207.4,0.00031665,2]
[400533778,1767701440556,-250.0,0.00031665,2]
[400533779,1767701440566,-500.0,0.00031665,2]
[400533780,1767701440576,-500.0,0.00031665,2]
[400533781,1767701440585,-215.0738,0.00031665,2]
[400533782,1767701440595,-250.0,0.00031665,2]
[400533783,1767701440606,-500.0,0.00031665,2]
[400533784,1767701440615,-250.0,0.00031665,2]
[400533785,1767701440624,-223.0315306,0.00031665,2]
[400533786,1767701440634,-500.0,0.00031665,2]
[400533787,1767701440644,-250.0,0.00031665,2]
[400533788,1767701440654,-295.45338954,0.00031665,2]
[400533789,1767701440664,-500.0,0.00031665,2]
[400533790,1767701440673,-500.0,0.00031665,2]
[400533791,1767701440682,-500.0,0.00031665,2]
[400533792,1767701440692,-250.0,0.00031665,2]
[400533793,1767701440702,-500.0,0.00031665,2]
[400533794,1767701440711,-250.0,0.00031665,2]
[400533795,1767701440721,-500.0,0.00031665,2]
[400533796,1767701440731,-250.0,0.00031665,2]
[400533797,1767701440740,-500.0,0.00031665,2]
[400533798,1767701440750,-250.0,0.00031665,2]
[400533799,1767701440759,-500.0,0.00031665,2]
[400533800,1767701440769,-547.72733093,0.00031665,2]
[400533801,1767701440779,-500.0,0.00031665,2]
[400533802,1767701440788,-250.0,0.00031665,2]
[400533803,1767701440798,-250.0,0.00031665,2]
[400533804,1767701440808,-500.0,0.00031665,2]
[400533805,1767701440817,-250.0,0.00031665,2]
[400533806,1767701440826,-250.0,0.00031665,2]
[400533807,1767701440836,-500.0,0.00031665,2]
[400533808,1767701440845,-250.0,0.00031665,2]
[400533809,1767701440854,-250.0,0.00031665,2]
[400533810,1767701440864,-500.0,0.00031665,2]
[400533811,1767701440873,-250.0,0.00031665,2]
[400533812,1767701440882,-250.0,0.00031665,2]
[400533813,1767701440892,-500.0,0.00031665,2]
[400533814,1767701440901,-250.0,0.00031665,2]
[400533815,1767701440910,-250.0,0.00031665,2]
[400533816,1767701440919,-500.0,0.00031665,2]
[400533817,1767701440929,-250.0,0.00031665,2]
[400533818,1767701440938,-250.0,0.00031665,2]
[400533819,1767701440948,-500.0,0.00031665,2]
[400533820,1767701440957,-250.0,0.00031665,2]
[400533821,1767701440967,-250.0,0.00031665,2]
[400533822,1767701440977,-283.03265921,0.00031665,2]
[400533823,1767701440987,-250.0,0.00031665,2]
[400533824,1767701440997,-250.0,0.00031665,2]
[400533825,1767701441008,-250.0,0.00031665,2]
[400533826,1767701441018,-250.0,0.00031665,2]
[400533827,1767701441027,-250.0,0.00031665,2]
[400533828,1767701441037,-250.0,0.00031665,2]
[400533829,1767701441047,-348.58,0.00031723,30]
[400533830,1767701441057,-1358.0,0.00032,7]
[400533831,1767701441067,-480.57417236,0.00032,2]
[400533832,1767701441077,-2000.0,0.000321,2]
[400533833,1767701441086,-9154.15788223,0.00032203,3]
[400533834,1767701441098,-364.1672543,0.00032213,2]
[400533835,1767701441107,-2924.5,0.0003225,2]
[400533836,1767701441117,-336.54002912,0.00032344,2]
[400533837,1767701441126,-2804.38,0.0003239,2]
[400533838,1767701441136,-500.0,0.00032474,2]
[400533839,1767701441146,-7216.61208625,0.00032567,2]
[400533840,1767701441155,-524.0,0.00032825,5]
[400533841,1767701441164,-9154.15788223,0.00032866,3]
[400533842,1767701441174,-500.0,0.00032876,30]
[400533843,1767701441183,-500.0,0.00032876,30]
[400533844,1767701441193,-500.0,0.00032876,30]
[400533845,1767701441202,-500.0,0.00032876,30]
[400533846,1767701441212,-533.68104257,0.00032876,100]
[400533847,1767701441221,-200.0,0.00032876,2]
[400533848,1767701441230,-500.0,0.00032876,30]
[400533849,1767701441240,-500.0,0.00032876,30]
[400533850,1767701441250,-572.11788416,0.00032876,30]
[400533851,1767701441259,-500.0,0.00032876,30]
[400533852,1767701441268,-563.39830923,0.00032876,30]
[400533853,1767701441278,-500.0,0.00032876,30]
[400533854,1767701441287,-516.85577192,0.00032876,30]
[400533855,1767701441300,-500.0,0.00032876,30]
[400533856,1767701441309,-500.0,0.00032876,30]
[400533857,1767701441319,-500.0,0.00032876,30]
[400533858,1767701441328,-500.0,0.00032876,30]
[400533859,1767701441339,-500.0,0.00032876,30]
[400533860,1767701441348,-500.0,0.00032876,30]
[400533861,1767701441358,-500.0,0.00032876,60]
[400533862,1767701441369,-500.0,0.00032876,60]
[400533863,1767701441378,-500.0,0.00032876,60]
[400533864,1767701441387,-552.77105778,0.00032876,60]
[400533865,1767701441396,-500.0,0.00032876,60]
[400533866,1767701441405,-500.0,0.00032876,60]
[400533867,1767701441414,-500.0,0.00032876,60]
[400533868,1767701441424,-500.0,0.00032876,60]
[400533869,1767701441433,-500.0,0.00032876,60]
[400533870,1767701441442,-500.0,0.00032876,60]
[400533871,1767701441453,-500.0,0.00032876,60]
[400533872,1767701441463,-500.0,0.00032876,60]
[400533873,1767701441472,-500.0,0.00032876,60]
[400533874,1767701441481,-500.0,0.00032876,60]
[400533875,1767701441491,-500.0,0.00032876,2]
[400533876,1767701441501,-500.0,0.00032876,2]
[400533877,1767701441510,-1000.0,0.00032928,2]
[400533878,1767701441520,-3819.80974659,0.00033,13]
[400533879,1767701441531,-780.0,0.0003316,5]
[400533880,1767701441540,-249.84,0.00033165,2]
[400533881,1767701441549,-9154.15788223,0.00033195,3]
[400533882,1767701441559,-200.0,0.00033205,2]
[400533883,1767701441568,-2804.38,0.00033342,2]
[400533884,1767701441577,-9154.15788223,0.00033448,3]
[400533885,1767701441587,-1094.11,0.00033457,120]
[400533886,1767701441596,-500.0,0.00033457,60]
[400533887,1767701441606,-9083.17796255,0.00033458,2]
[400533888,1767701441616,-5000.0,0.00033458,2]
[400533889,1767701441626,-5000.0,0.00033458,2]
[400533890,1767701441636,-5000.0,0.00033458,2]
[400533891,1767701441647,-463.55,0.00033534,14]
[400533892,1767701441657,-200.0,0.00033537,2]
[400533893,1767701441666,-290.0,0.00033738,120]
[400533894,1767701441676,-151.66977686,0.00033872,2]
[400533895,1767701441685,-500.0,0.00034136,30]
[400533896,1767701441695,-500.0,0.00034136,60]
[400533897,1767701441705,-500.0,0.00034136,60]
[400533898,1767701441714,-2924.5,0.00034137,3]
[400533899,1767701441724,-336.54002912,0.00034256,2]
[400533900,1767701441733,-2804.38,0.00034295,2]
[400533901,1767701441743,-9154.15788223,0.00034448,3]
[400533902,1767701441754,-476.79,0.00034458,2]
[400533903,1767701441764,-500.0,0.00034698,30]
[400533904,1767701441774,-500.0,0.00034698,30]
[400533905,1767701441783,-500.0,0.00034698,60]
[400533906,1767701441794,-500.0,0.00034698,120]
[400533907,1767701441803,-500.0,0.00034698,60]
[400533908,1767701441813,-500.0,0.00034698,120]
[400533909,1767701441823,-500.0,0.00034698,60]
[400533910,1767701441833,-500.0,0.00034698,120]
[400533911,1767701441843,-476.79,0.00034731,2]
[400533912,1767701441854,-7216.61208625,0.000349,2]
[400533913,1767701441863,-9154.15788223,0.0003499,3]
[400533914,1767701441874,-500.0,0.00034999,2]
[400533915,1767701441883,-20000.0,0.00035,120]
[400533916,1767701441892,-159.71,0.00035005,2]
[400533917,1767701441901,-318.39335051,0.00035093,30]
[400533918,1767701441911,-424.52446735,0.00035093,30]
[400533919,1767701441920,-2804.38,0.00035248,2]
[400533920,1767701441930,-500.0,0.00035274,2]
[400533921,1767701441941,-1145.191,0.00035438,42]
[400533922,1767701441952,-548.50020875,0.00035616,7]
[400533923,1767701441961,-197.80737176,0.00035616,2]
[400533924,1767701441970,-524.0,0.00035774,8]
[400533925,1767701441979,-2000.0,0.000358,2]
[400533926,1767701441988,-166.72267622,0.00035881,2]
[400533927,1767701441997,-1994.0,0.00036,120]
[400533928,1767701442006,-9154.15788223,0.00036005,3]
[400533929,1767701442016,-2924.5,0.00036025,4]
[400533930,1767701442025,-348.58,0.00036049,30]
[400533931,1767701442036,-336.54002912,0.00036167,2]
[400533932,1767701442045,-2804.38,0.000362,2]
[400533933,1767701442055,-1000.0,0.00036221,2]
[400533934,1767701442063,-262.83,0.000371,14]
[400533935,1767701442074,-259.24290918,0.000372,120]
[400533936,1767701442083,-259.24290916,0.000372,120]
[400533937,1767701442093,-259.24290916,0.000372,120]
[400533938,1767701442103,-7216.61208625,0.00037233,2]
[400533939,1767701442112,-150.1,0.00037358,2]
[400533940,1767701442122,-150.1,0.00037358,2]
[400533941,1767701442138,-150.1,0.00037358,2]
[400533942,1767701442147,-150.1,0.00037358,2]
[400533943,1767701442156,-150.1,0.00037358,2]
[400533944,1767701442165,-272.5711073,0.00037358,2]
[400533945,1767701442176,-259.24290916,0.0003739,120]
[400533946,1767701442195,-203.46,0.000375,30]
[400533947,1767701442211,-1066.35322779,0.00037753,120]
[400533948,1767701442220,-318.39335051,0.0003777,120]
[400533949,1767701442231,-168.0,0.0003787,7]
[400533950,1767701442242,-2924.5,0.00037912,5]
[400533951,1767701442253,-262.83,0.00038,14]
[400533952,1767701442264,-168.0,0.00038069,2]
[400533953,1767701442274,-323.79836976,0.00038075,5]
[400533954,1767701442283,-336.54002912,0.00038078,2]
[400533955,1767701442292,-9154.15788223,0.0003819,4]
[400533956,1767701442304,-1723.46,0.000382,2]
[400533957,1767701442313,-500.0,0.00038204,2]
[400533958,1767701442323,-500.0,0.00038205,2]
[400533959,1767701442332,-500.0,0.00038206,2]
[400533960,1767701442342,-500.0,0.00038207,2]
[400533961,1767701442352,-500.0,0.00038208,2]
[400533962,1767701442361,-500.0,0.00038209,2]
[400533963,1767701442373,-500.0,0.0003821,2]
[400533964,1767701442382,-500.0,0.00038211,2]
[400533965,1767701442391,-500.0,0.00038212,2]
[400533966,1767701442400,-500.0,0.00038213,2]
[400533967,1767701442409,-500.0,0.00038214,2]
[400533968,1767701442418,-500.0,0.00038215,2]
[400533970,1767701442427,-500.0,0.00038216,2]
[400533971,1767701442436,-500.0,0.00038217,2]
[400533973,1767701442446,-500.0,0.00038218,2]
[400533975,1767701442455,-500.0,0.00038219,2]
[400533978,1767701442465,-500.0,0.0003822,2]
[400533979,1767701442476,-500.0,0.00038221,2]
[400533980,1767701442485,-500.0,0.00038222,2]
[400533981,1767701442496,-500.0,0.00038223,2]
[400533982,1767701442508,-500.0,0.00038356,120]
[400533983,1767701442518,-500.0,0.00038411,120]
[400533984,1767701442527,-168.0,0.00038415,2]
[400533985,1767701442538,-168.0,0.00038433,2]
[400533986,1767701442547,-168.0,0.00038447,2]
[400533987,1767701442556,-500.0,0.00038466,120]
[400533988,1767701442565,-500.0,0.0003852,120]
[400533989,1767701442575,-500.0,0.00038575,120]
[400533990,1767701442584,-269.88779833,0.00038606,2]
[400533991,1767701442593,-500.0,0.0003863,120]
[400533992,1767701442603,-168.0,0.00038671,7]
[400533993,1767701442612,-363.80419993,0.00038685,120]
[400533994,1767701442622,-524.0,0.00038722,12]
[400533995,1767701442632,-800.0,0.00038821,14]
[400533996,1767701442641,-800.0,0.00038821,14]
[400533997,1767701442650,-800.0,0.00038821,14]
[400533998,1767701442660,-800.0,0.00038821,14]
[400533999,1767701442671,-9154.15788223,0.00038832,4]
[400534000,1767701442680,-9154.15788223,0.00038842,4]
[400534001,1767701442690,-524.11470424,0.0003885,30]
[400534002,1767701442699,-500.0,0.0003885,60]
[400534003,1767701442710,-500.0,0.0003885,60]
[400534004,1767701442719,-27462.4736467,0.00038851,4]
[400534005,1767701442729,-500.0,0.00038852,120]
[400534006,1767701442739,-458.39,0.00038852,120]
[400534007,1767701442748,-25000.0,0.00038852,15]
[400534008,1767701442758,-1094.11,0.00038859,120]
[400534009,1767701442768,-500.0,0.00038859,60]
[400534010,1767701442778,-500.0,0.0003886,30]
[400534011,1767701442788,-500.0,0.0003886,30]
[400534012,1767701442797,-500.0,0.0003886,60]
[400534013,1767701442807,-500.0,0.0003886,120]
[400534014,1767701442816,-500.0,0.0003886,60]
[400534015,1767701442826,-500.0,0.0003886,120]
[400534016,1767701442837,-500.0,0.0003886,60]
[400534017,1767701442846,-500.0,0.0003886,120]
[400534018,1767701442856,-25000.0,0.00038861,15]
[400534019,1767701442866,-20557.39516254,0.00038861,15]
[400534020,1767701442875,-174.92716486,0.0003889,2]
[400534021,1767701442884,-330.8,0.000389,14]
[400534022,1767701442894,-257.28,0.000389,14]
[400534023,1767701442903,-414.42,0.000389,14]
[400534024,1767701442912,-194.31936888,0.00038905,2]
[400534025,1767701442922,-516.90677062,0.00038915,2]
[400534026,1767701442931,-411.8955792,0.00038915,2]
[400534027,1767701442941,-9154.15788223,0.0003898,4]
[400534028,1767701442950,-150.0,0.0003898,2]
[400534029,1767701442960,-500.0,0.00038989,2]
[400534030,1767701442970,-19126.70290063,0.0003899,4]
[400534031,1767701442988,-913.53,0.0003899,4]
[400534032,1767701443004,-1028.90044062,0.0003899,4]
[400534033,1767701443015,-1182.08691465,0.0003899,4]
[400534035,1767701443186,-8000.0,0.0003899,4]
[400534036,1767701443199,-271.64303514,0.0003899,4]
[400534037,1767701443210,-2741.9824335,0.0003899,4]
[400534038,1767701443467,-1242.13822015,0.0003899,4]
[400534039,1767701443479,-47880.43699541,0.0003899,4]
[400534040,1767701443489,-151.51,0.0003899,2]
[400534041,1767701443500,-500.0,0.00038998,30]
[400534042,1767701443509,-250.0,0.00038998,30]
[400534043,1767701443519,-500.0,0.00038998,30]
[400534044,1767701443528,-500.0,0.00038998,30]
[400534045,1767701443538,-514.84070869,0.00038998,30]
[400534046,1767701443548,-500.0,0.00038998,30]
[400534047,1767701443558,-151.0,0.00038998,30]
[400534048,1767701443568,-500.0,0.00038998,30]
[400534049,1767701443578,-250.0,0.00038998,30]
[400534050,1767701443588,-500.0,0.00038998,30]
[400534051,1767701443598,-250.0,0.00038998,30]
[400534052,1767701443609,-500.0,0.00038999,30]
[400534053,1767701443618,-500.0,0.00038999,30]
[400534054,1767701443628,-500.0,0.00038999,60]
[400534055,1767701443638,-369.83811658,0.00038999,120]
[400534056,1767701443647,-557.86000434,0.00038999,60]
[400534057,1767701443657,-500.0,0.00038999,60]
[400534058,1767701443667,-500.0,0.00038999,30]
[400534059,1767701443678,-250.0,0.00038999,30]
[400534060,1767701443687,-500.0,0.00038999,30]
[400534061,1767701443698,-500.0,0.00038999,30]
[400534062,1767701443708,-496.47127164,0.00038999,30]
[400534063,1767701443717,-500.0,0.00038999,30]
[400534064,1767701443728,-151.0,0.00038999,30]
[400534065,1767701443738,-500.0,0.00038999,30]
[400534066,1767701443749,-250.0,0.00038999,30]
[400534067,1767701443758,-500.0,0.00038999,30]
[400534068,1767701443768,-250.0,0.00038999,30]
[400534069,1767701443778,-513.19641697,0.00038999,120]
[400534070,1767701443788,-1094.11,0.00038999,120]
[400534071,1767701443798,-500.0,0.00038999,60]
[400534072,1767701443808,-500.0,0.00038999,60]
[400534073,1767701443818,-500.0,0.00038999,60]
[400534074,1767701443828,-500.0,0.00038999,120]
[400534075,1767701443837,-29999.99999905,0.00039,2]
[400534076,1767701443847,-59745.80072533,0.00039,120]
[400534077,1767701443857,-19577.53,0.00039,2]
[400534078,1767701443866,-50000.0,0.00039,50]
[400534079,1767701443876,-167.56976843,0.00039025,30]
[400534080,1767701443885,-168.0,0.00039089,2]
[400534081,1767701443895,-1723.46,0.000392,30]
[400534082,1767701443904,-330.8,0.000393,14]
[400534083,1767701443914,-257.28,0.000393,14]
[400534084,1767701443923,-414.42,0.000393,14]
[400534085,1767701443933,-9154.15788223,0.0003939,4]
[400534086,1767701443942,-500.0,0.00039399,2]
[400534087,1767701443953,-19577.53,0.000394,2]
[400534088,1767701443962,-168.0,0.00039435,2]
[400534089,1767701443972,-811.63348704,0.000395,2]
[400534090,1767701443981,-2000.0,0.000395,2]
[400534091,1767701443992,-9154.15788223,0.00039504,4]
[400534092,1767701444001,-1000.0,0.00039514,2]
[400534093,1767701444011,-7216.61208625,0.00039567,2]
[400534094,1767701444020,-168.0,0.00039627,2]
[400534095,1767701444030,-249.84,0.00039654,2]
[400534096,1767701444039,-168.0,0.00039692,2]
[400534097,1767701444049,-330.8,0.000397,14]
[400534098,1767701444059,-257.28,0.000397,14]
[400534099,1767701444069,-414.42,0.000397,14]
[400534100,1767701444079,-163.69153772,0.000397,2]
[400534101,1767701444090,-156.65295916,0.000397,2]
[400534102,1767701444099,-500.0,0.00039727,120]
[400534103,1767701444110,-151.51,0.00039779,2]
[400534104,1767701444120,-168.0,0.00039783,2]
[400534105,1767701444130,-45770.7894111,0.00039789,4]
[400534106,1767701444140,-27462.4736467,0.00039789,4]
[400534107,1767701444150,-500.0,0.00039789,60]
[400534108,1767701444161,-500.0,0.00039789,60]
[400534109,1767701444171,-108947.14750855,0.0003979,30]
[400534110,1767701444181,-36616.6315289,0.0003979,4]
[400534111,1767701444191,-500.0,0.00039798,2]
[400534112,1767701444200,-527.53474115,0.00039799,120]
[400534113,1767701444212,-500.0,0.00039799,30]
[400534114,1767701444222,-523.04396945,0.00039799,30]
[400534115,1767701444232,-500.0,0.00039799,30]
[400534116,1767701444241,-500.0,0.00039799,30]
[400534117,1767701444251,-500.0,0.00039799,30]
[400534118,1767701444260,-500.0,0.00039799,30]
[400534119,1767701444269,-500.0,0.00039799,30]
[400534120,1767701444278,-500.0,0.00039799,30]
[400534121,1767701444288,-500.0,0.00039799,60]
[400534122,1767701444300,-500.0,0.00039799,60]
[400534123,1767701444310,-500.0,0.00039799,60]
[400534124,1767701444319,-523.74768906,0.00039799,60]
[400534125,1767701444328,-500.0,0.00039799,60]
[400534126,1767701444339,-500.0,0.00039799,60]
[400534127,1767701444348,-500.0,0.00039799,60]
[400534128,1767701444357,-500.0,0.00039799,60]
[400534129,1767701444368,-500.0,0.00039799,60]
[400534130,1767701444377,-500.0,0.00039799,30]
[400534131,1767701444388,-250.0,0.00039799,30]
[400534132,1767701444397,-500.0,0.00039799,30]